fUST/lending_fUST_20240612
["ID","MTS","AMOUNT","RATE_DAILY","PERIOD"]
[329144040,1718135460808,-500.0,0.00019452,2]
[329144041,1718135460818,-500.0,0.00019452,2]
[329144042,1718135460827,-500.0,0.00019452,2]
[329144043,1718135460836,-500.0,0.00019452,2]
[329144044,1718135460848,-151.0,0.00019452,2]
[329144045,1718135460858,-500.0,0.00019452,2]
[329144046,1718135460868,-500.0,0.00019452,2]
[329144047,1718135460879,-791.38,0.00019452,2]
[329144048,1718135460888,-500.0,0.00019452,2]
[329144049,1718135460901,-500.0,0.00019452,2]
[329144050,1718135460910,-500.0,0.00019452,2]
[329144051,1718135460920,-500.0,0.00019452,2]
[329144052,1718135460931,-502.37518096,0.00019452,2]
[329144053,1718135460943,-500.0,0.00019452,2]
[329144054,1718135460953,-500.0,0.00019452,2]
[329144055,1718135460963,-500.0,0.00019452,2]
[329144056,1718135460973,-500.0,0.00019452,2]
[329144057,1718135460984,-840.957654,0.00019452,2]
[329144058,1718135460996,-840.957654,0.00019452,2]
[329144059,1718135461007,-500.0,0.00019452,2]
[329144060,1718135461017,-500.0,0.00019452,2]
[329144061,1718135461027,-5849.39,0.00019724,2]
[329144062,1718135461039,-832.61,0.00019725,2]
[329144063,1718135461049,-832.61,0.00019725,2]
[329144064,1718135461058,-832.61,0.00019725,2]
[329144065,1718135461069,-713.967356,0.00019725,2]
[329144066,1718135461079,-713.967356,0.00019725,2]
[329144067,1718135461089,-5849.39,0.00019725,2]
[329144068,1718135461099,-5849.39,0.00019725,2]
[329144069,1718135461110,-5849.39,0.00019725,2]
[329144070,1718135461120,-5849.39,0.00019725,2]
[329144071,1718135461130,-5849.46449751,0.00019725,2]
[329144072,1718135461140,-1529.285588,0.00019725,2]
[329144073,1718135461150,-1529.285588,0.00019725,2]
[329144074,1718135461159,-151.0,0.00019725,2]
[329144075,1718135461169,-840.957654,0.00019725,2]
[329144076,1718135461180,-500.0,0.00019726,2]
[329144077,1718135461190,-500.0,0.00019726,2]
[329144078,1718135461201,-500.0,0.00019726,2]
[329144079,1718135461212,-500.0,0.00019726,2]
[329144080,1718135461224,-500.0,0.00019726,2]
[329144081,1718135461234,-500.0,0.00019726,2]
[329144082,1718135461243,-500.0,0.00019726,2]
[329144083,1718135461254,-500.0,0.00019726,2]
[329144084,1718135461264,-500.0,0.00019726,2]
[329144085,1718135461279,-500.0,0.00019726,2]
[329144086,1718135461291,-500.0,0.00019726,2]
[329144087,1718135461301,-500.0,0.00019726,2]
[329144088,1718135461314,-500.0,0.00019726,2]
[329144089,1718135461329,-500.0,0.00019726,2]
[329144090,1718135461341,-500.0,0.00019726,2]
[329144091,1718135461353,-500.0,0.00019726,2]
[329144092,1718135461363,-500.0,0.00019726,2]
[329144093,1718135461373,-500.0,0.00019726,2]
[329144094,1718135461383,-500.0,0.00019726,2]
[329144095,1718135461394,-500.0,0.00019726,2]
[329144096,1718135461404,-500.0,0.00019726,2]
[329144097,1718135461414,-500.0,0.00019726,2]
[329144098,1718135461425,-500.0,0.00019726,2]
[329144099,1718135461435,-500.0,0.00019726,2]
[329144100,1718135461445,-500.0,0.00019726,2]
[329144101,1718135461455,-500.0,0.00019726,2]
[329144102,1718135461465,-433.46261431,0.00019726,2]
[329144103,1718135461475,-168.08187762,0.00019726,2]
[329144104,1718135461486,-500.0,0.00019726,2]
[329144105,1718135461496,-500.0,0.00019726,2]
[329144106,1718135461506,-548.51672985,0.00019726,2]
[329144107,1718135461516,-500.0,0.00019726,2]
[329144108,1718135461526,-501.28866295,0.00019726,2]
[329144109,1718135461538,-500.0,0.00019726,2]
[329144110,1718135461548,-502.47547324,0.00019726,2]
[329144111,1718135461559,-500.0,0.00019726,2]
[329144112,1718135461570,-522.35,0.00019726,2]
[329144113,1718135461580,-500.0,0.00019726,2]
[329144114,1718135461590,-500.0,0.00019726,2]
[329144115,1718135461600,-294.41889044,0.00019726,2]
[329144116,1718135461610,-500.0,0.00019726,2]
[329144117,1718135461620,-500.0,0.00019726,2]
[329144118,1718135461630,-500.0,0.00019726,2]
[329144119,1718135461640,-500.0,0.00019726,2]
[329144120,1718135461650,-500.0,0.00019726,2]
[329144121,1718135461660,-500.0,0.00019726,2]
[329144122,1718135461670,-500.0,0.00019726,2]
[329144123,1718135461681,-500.0,0.00019726,2]
[329144124,1718135461691,-500.0,0.00019726,2]
[329144125,1718135461701,-500.0,0.00019726,2]
[329144126,1718135461711,-500.0,0.00019726,2]
[329144127,1718135461721,-500.0,0.00019726,2]
[329144128,1718135461731,-500.0,0.00019726,2]
[329144129,1718135461742,-500.0,0.00019726,2]
[329144130,1718135461752,-500.0,0.00019726,2]
[329144131,1718135461763,-151.0,0.00019726,2]
[329144132,1718135461773,-601.75,0.00019726,2]
[329144133,1718135461784,-500.0,0.00019726,2]
[329144134,1718135461794,-500.0,0.00019726,2]
[329144135,1718135461804,-500.0,0.00019726,2]
[329144136,1718135461815,-500.0,0.00019726,2]
[329144137,1718135461826,-500.0,0.00019726,2]
[329144138,1718135461836,-500.0,0.00019726,2]
[329144139,1718135461848,-500.0,0.00019726,2]
[329144140,1718135461858,-500.0,0.00019726,2]
[329144141,1718135461868,-500.0,0.00019726,2]
[329144142,1718135461878,-500.0,0.00019726,2]
[329144143,1718135461888,-500.0,0.00019726,2]
[329144144,1718135461898,-500.0,0.00019726,2]
[329144145,1718135461908,-500.0,0.00019726,2]
[329144146,1718135461917,-500.0,0.00019726,2]
[329144147,1718135461927,-500.0,0.00019726,2]
[329144148,1718135461938,-500.0,0.00019726,2]
[329144149,1718135461948,-151.0,0.00019726,2]
[329144150,1718135461958,-500.0,0.00019726,2]
[329144151,1718135461970,-248.047095,0.00019726,2]
[329144152,1718135461980,-248.047095,0.00019726,2]
[329144153,1718135461990,-500.0,0.00019726,2]
[329144154,1718135462000,-500.0,0.00019726,2]
[329144155,1718135462010,-401.38,0.00019726,2]
[329144156,1718135462020,-500.0,0.00019726,2]
[329144157,1718135462030,-500.0,0.00019726,2]
[329144158,1718135462042,-500.0,0.00019726,2]
[329144159,1718135462052,-500.0,0.00019726,2]
[329144160,1718135462064,-500.0,0.00019726,2]
[329144161,1718135462075,-200.09577122,0.00019726,2]
[329144162,1718135462086,-500.0,0.00019726,2]
[329144163,1718135462165,-500.0,0.00019726,2]
[329144164,1718135462176,-500.0,0.00019726,2]
[329144165,1718135462186,-500.0,0.00019726,2]
[329144166,1718135462197,-381.85355432,0.00019726,2]
[329144167,1718135462208,-500.0,0.00019726,2]
[329144168,1718135462219,-500.0,0.00019726,2]
[329144169,1718135462229,-500.0,0.00019726,2]
[329144170,1718135462240,-342.592142,0.00019726,2]
[329144171,1718135462250,-316.65582161,0.00019726,2]
[329144172,1718135462262,-342.592142,0.00019726,2]
[329144173,1718135462276,-306.41115829,0.00019726,2]
[329144174,1718135462289,-264.0991326,0.00019726,2]
[329144175,1718135462299,-500.0,0.00019726,2]
[329144176,1718135462311,-500.0,0.00019726,2]
[329144177,1718135462322,-500.0,0.00019726,2]
[329144178,1718135462336,-500.0,0.00019726,2]
[329144179,1718135462363,-500.0,0.00019726,2]
[329144180,1718135462374,-500.0,0.00019726,2]
[329144181,1718135462384,-500.0,0.00019726,2]
[329144182,1718135462395,-500.0,0.00019726,2]
[329144183,1718135462406,-500.0,0.00019726,2]
[329144184,1718135462416,-616.37,0.00019726,2]
[329144185,1718135462426,-500.0,0.00019726,2]
[329144186,1718135462436,-500.0,0.00019726,2]
[329144187,1718135462447,-500.0,0.00019726,2]
[329144188,1718135462457,-3719.95,0.00019726,2]
[329144189,1718135462467,-151.0,0.00019726,2]
[329144190,1718135462477,-500.0,0.00019726,2]
[329144191,1718135462487,-611.39037659,0.00019726,2]
[329144192,1718135462497,-500.0,0.00019726,2]
[329144193,1718135462507,-500.0,0.00019726,2]
[329144194,1718135462517,-1065.683153,0.00019726,2]
[329144195,1718135462527,-500.0,0.00019726,2]
[329144196,1718135462537,-1065.683153,0.00019726,2]
[329144197,1718135462547,-500.0,0.00019726,2]
[329144198,1718135462558,-500.0,0.00019726,2]
[329144199,1718135462569,-500.0,0.00019726,2]
[329144200,1718135462580,-151.0,0.00019726,2]
[329144201,1718135462590,-500.0,0.00019726,2]
[329144202,1718135462601,-500.0,0.00019726,2]
[329144203,1718135462611,-500.0,0.00019726,2]
[329144204,1718135462622,-500.0,0.00019726,2]
[329144205,1718135462632,-500.0,0.00019726,2]
[329144206,1718135462643,-856.49,0.00019726,2]
[329144207,1718135462653,-6789.73,0.00019726,2]
[329144208,1718135462664,-500.0,0.00019726,4]
[329144209,1718135462674,-500.0,0.00019726,2]
[329144210,1718135462685,-500.0,0.00019726,2]
[329144211,1718135462696,-229.784082,0.00019726,2]
[329144212,1718135462707,-155.768776,0.00019726,2]
[329144213,1718135462717,-575.2767149,0.00019726,2]
[329144214,1718135462728,-500.0,0.00019726,2]
[329144215,1718135462739,-500.0,0.00019726,2]
[329144216,1718135462750,-500.0,0.00019726,2]
[329144217,1718135462760,-500.0,0.00019726,2]
[329144218,1718135462771,-500.0,0.00019726,2]
[329144219,1718135462782,-500.0,0.00019726,2]
[329144220,1718135462794,-500.0,0.00019726,2]
[329144221,1718135462804,-500.0,0.00019726,2]
[329144222,1718135462814,-543.48600215,0.00019726,2]
[329144223,1718135462824,-355.45889363,0.00019726,2]
[329144224,1718135462835,-500.0,0.00019726,2]
[329144225,1718135462845,-739.33,0.00019726,2]
[329144226,1718135462856,-500.0,0.00019726,2]
[329144227,1718135462866,-500.0,0.00019726,2]
[329144228,1718135462877,-516.02195612,0.00019726,2]
[329144229,1718135462887,-151.0,0.00019726,2]
[329144230,1718135462897,-500.0,0.00019726,2]
[329144231,1718135462908,-500.0,0.00019726,2]
[329144232,1718135462919,-500.0,0.00019726,2]
[329144233,1718135462929,-500.0,0.00019726,2]
[329144234,1718135462939,-347.901303,0.00019726,2]
[329144235,1718135462950,-347.901303,0.00019726,2]
[329144236,1718135462960,-500.0,0.00019726,2]
[329144237,1718135462970,-540.1720761,0.00019726,2]
[329144238,1718135462980,-500.0,0.00019726,2]
[329144239,1718135462991,-500.0,0.00019726,2]
[329144240,1718135463001,-599.96,0.00019726,2]
[329144241,1718135463011,-509.8123844,0.00019726,2]
[329144242,1718135463022,-500.0,0.00019726,2]
[329144243,1718135463032,-500.0,0.00019726,2]
[329144244,1718135463044,-151.0,0.00019726,2]
[329144245,1718135463053,-352.58960664,0.00019726,2]
[329144246,1718135463064,-500.0,0.00019726,2]
[329144247,1718135463074,-3299.02,0.00019726,2]
[329144248,1718135463085,-217.72873552,0.00019726,2]
[329144249,1718135463096,-500.0,0.00019726,2]
[329144250,1718135463106,-500.0,0.00019726,2]
[329144251,1718135463116,-500.0,0.00019726,2]
[329144252,1718135463127,-151.0,0.00019726,2]
[329144253,1718135463138,-10977.54,0.00019726,2]
[329144254,1718135463148,-500.0,0.00019726,2]
[329144255,1718135463159,-500.0,0.00019726,2]
[329144256,1718135463169,-500.0,0.00019726,2]
[329144257,1718135463179,-294.212224,0.00019726,2]
[329144258,1718135463190,-500.0,0.00019726,2]
[329144259,1718135463201,-500.0,0.00019726,2]
[329144260,1718135463212,-500.0,0.00019726,2]
[329144261,1718135463223,-200.78800434,0.00019726,2]
[329144262,1718135463233,-500.0,0.00019726,2]
[329144263,1718135463244,-151.0,0.00019726,2]
[329144264,1718135463255,-581.89883348,0.00019726,2]
[329144265,1718135463270,-151.0,0.00019726,2]
[329144266,1718135463284,-500.0,0.00019726,2]
[329144267,1718135463295,-1384.94,0.00019726,2]
[329144268,1718135463306,-1799.21,0.00019726,2]
[329144269,1718135463318,-500.0,0.00019726,2]
[329144270,1718135463331,-500.0,0.00019726,2]
[329144271,1718135463343,-500.0,0.00019726,2]
[329144272,1718135463355,-523.28,0.00019726,2]
[329144273,1718135463367,-500.0,0.00019726,2]
[329144274,1718135463378,-500.0,0.00019726,2]
[329144275,1718135463389,-888.56,0.00019726,2]
[329144276,1718135463400,-500.0,0.00019726,2]
[329144277,1718135463411,-500.0,0.00019726,2]
[329144278,1718135463422,-428.79543305,0.00019726,2]
[329144279,1718135463432,-500.0,0.00019726,2]
[329144280,1718135463443,-8328.31,0.00019726,2]
[329144281,1718135463454,-500.0,0.00019726,2]
[329144282,1718135463465,-500.0,0.00019726,2]
[329144283,1718135463475,-593.38,0.00019726,2]
[329144284,1718135463486,-933.99,0.00019726,2]
[329144285,1718135463497,-500.0,0.00019726,2]
[329144286,1718135463507,-500.0,0.00019726,2]
[329144287,1718135463518,-500.0,0.00019726,2]
[329144288,1718135463607,-500.0,0.00019726,2]
[329144289,1718135463619,-500.0,0.00019726,2]
[329144290,1718135463631,-500.0,0.00019726,2]
[329144291,1718135463641,-500.0,0.00019726,2]
[329144292,1718135463651,-500.0,0.00019726,2]
[329144293,1718135463662,-500.0,0.00019726,2]
[329144294,1718135463672,-500.0,0.00019726,2]
[329144295,1718135463683,-500.0,0.00019726,2]
[329144296,1718135463693,-500.0,0.00019726,2]
[329144297,1718135463704,-500.0,0.00019726,2]
[329144298,1718135463714,-500.0,0.00019726,2]
[329144299,1718135463725,-500.0,0.00019726,2]
[329144300,1718135463735,-500.0,0.00019726,2]
[329144301,1718135463745,-630.63637782,0.00019726,2]
[329144302,1718135463755,-500.0,0.00019726,2]
[329144303,1718135463767,-595.149395,0.00019726,2]
[329144304,1718135463778,-500.0,0.00019726,2]
[329144305,1718135463789,-500.0,0.00019726,2]
[329144306,1718135463799,-500.0,0.00019726,2]
[329144307,1718135463810,-595.149395,0.00019726,2]
[329144308,1718135463820,-296.9316736,0.00019726,2]
[329144309,1718135463832,-500.0,0.00019726,2]
[329144310,1718135463842,-648.23,0.00019726,2]
[329144311,1718135463853,-500.0,0.00019726,2]
[329144312,1718135463863,-2590.95,0.00019726,2]
[329144313,1718135463874,-372.426328,0.00019726,2]
[329144314,1718135463885,-500.0,0.00019726,2]
[329144315,1718135463895,-372.426328,0.00019726,2]
[329144316,1718135463906,-500.0,0.00019726,2]
[329144317,1718135463917,-503.028886,0.00019726,2]
[329144318,1718135463927,-500.0,0.00019726,2]
[329144319,1718135463937,-500.0,0.00019726,2]
[329144320,1718135463948,-500.0,0.00019726,2]
[329144321,1718135463958,-3576.6,0.00019726,2]
[329144322,1718135463968,-663.51,0.00019726,2]
[329144323,1718135463982,-500.0,0.00019726,2]
[329144324,1718135463992,-500.0,0.00019726,2]
[329144325,1718135464003,-500.0,0.00019726,2]
[329144326,1718135464013,-500.0,0.00019726,2]
[329144327,1718135464023,-500.0,0.00019726,2]
[329144328,1718135464034,-151.0,0.00019726,2]
[329144329,1718135464046,-500.0,0.00019726,2]
[329144330,1718135464057,-500.0,0.00019726,2]
[329144331,1718135464068,-486.84844,0.00019726,2]
[329144332,1718135464078,-500.0,0.00019726,2]
[329144333,1718135464089,-313.426962,0.00019726,2]
[329144334,1718135464099,-500.0,0.00019726,2]
[329144335,1718135464110,-500.0,0.00019726,2]
[329144336,1718135464121,-486.84844,0.00019726,2]
[329144337,1718135464131,-500.0,0.00019726,2]
[329144338,1718135464141,-313.426962,0.00019726,2]
[329144339,1718135464152,-500.0,0.00019726,2]
[329144340,1718135464163,-500.0,0.00019726,2]
[329144341,1718135464173,-2146.18,0.00019726,2]
[329144342,1718135464184,-500.0,0.00019726,2]
[329144343,1718135464195,-500.0,0.00019726,2]
[329144344,1718135464207,-500.0,0.00019726,2]
[329144345,1718135464217,-1565.78,0.00019726,2]
[329144346,1718135464228,-500.0,0.00019726,2]
[329144347,1718135464239,-500.0,0.00019726,2]
[329144348,1718135464250,-500.0,0.00019726,2]
[329144349,1718135464261,-500.0,0.00019726,2]
[329144350,1718135464275,-500.0,0.00019726,2]
[329144351,1718135464286,-500.0,0.00019726,2]
[329144352,1718135464300,-500.0,0.00019726,2]
[329144353,1718135464312,-500.0,0.00019726,2]
[329144354,1718135464323,-500.0,0.00019726,2]
[329144355,1718135464342,-713.967356,0.00019726,2]
[329144356,1718135464355,-500.0,0.00019726,2]
[329144357,1718135464366,-1220.82,0.00019726,2]
[329144358,1718135464376,-500.0,0.00019726,2]
[329144359,1718135464387,-713.967356,0.00019726,2]
[329144360,1718135464398,-500.0,0.00019726,2]
[329144361,1718135464408,-431.57382,0.00019726,2]
[329144362,1718135464420,-546.94567913,0.00019726,2]
[329144363,1718135464431,-500.0,0.00019726,2]
[329144364,1718135464442,-500.0,0.00019726,2]
[329144365,1718135464454,-559.76434657,0.00019726,2]
[329144366,1718135464465,-500.0,0.00019726,2]
[329144367,1718135464475,-500.0,0.00019726,2]
[329144368,1718135464486,-505.22,0.00019726,2]
[329144369,1718135464497,-500.0,0.00019726,2]
[329144370,1718135464507,-1529.285588,0.00019726,2]
[329144371,1718135464517,-1529.285588,0.00019726,2]
[329144372,1718135464528,-599.35,0.00019726,2]
[329144373,1718135464542,-500.0,0.00019726,2]
[329144374,1718135464553,-500.0,0.00019726,2]
[329144375,1718135464563,-500.0,0.00019726,2]
[329144376,1718135464574,-516.43842166,0.00019726,2]
[329144377,1718135464584,-500.0,0.00019726,2]
[329144378,1718135464595,-500.0,0.00019726,2]
[329144379,1718135464605,-500.0,0.00019726,2]
[329144380,1718135464615,-500.0,0.00019726,2]
[329144381,1718135464625,-500.0,0.00019726,2]
[329144382,1718135464635,-500.0,0.00019726,2]
[329144383,1718135464645,-500.0,0.00019726,2]
[329144384,1718135464656,-257.87376567,0.00019726,2]
[329144385,1718135464666,-500.0,0.00019726,2]
[329144386,1718135464677,-468.6,0.00019726,2]
[329144387,1718135464688,-500.0,0.00019726,2]
[329144388,1718135464698,-500.0,0.00019726,2]
[329144389,1718135464709,-2167.12,0.00019726,2]
[329144390,1718135464720,-500.0,0.00019726,2]
[329144391,1718135464731,-500.0,0.00019726,2]
[329144392,1718135464741,-151.0,0.00019726,2]
[329144393,1718135464752,-500.0,0.00019726,2]
[329144394,1718135464762,-500.0,0.00019726,2]
[329144395,1718135464772,-151.0,0.00019726,2]
[329144396,1718135464783,-500.0,0.00019726,2]
[329144397,1718135464797,-500.0,0.00019726,2]
[329144398,1718135464808,-500.0,0.00019726,2]
[329144399,1718135464818,-500.0,0.00019726,2]
[329144400,1718135464828,-500.0,0.00019726,2]
[329144401,1718135464839,-500.0,0.00019726,2]
[329144402,1718135464914,-791.38,0.00019726,2]
[329144403,1718135464926,-500.0,0.00019726,2]
[329144404,1718135464936,-500.0,0.00019726,2]
[329144405,1718135464946,-500.0,0.00019726,2]
[329144406,1718135464956,-500.0,0.00019726,2]
[329144407,1718135464967,-500.0,0.00019726,2]
[329144408,1718135464977,-500.0,0.00019726,2]
[329144409,1718135464988,-500.0,0.00019726,2]
[329144410,1718135464998,-840.957654,0.00019726,2]
[329144411,1718135465008,-206.229366,0.00019735,2]
[329144412,1718135465018,-1065.683153,0.00019735,2]
[329144413,1718135465029,-1065.683153,0.00019735,2]
[329144414,1718135465040,-151.0,0.00019735,2]
[329144415,1718135465051,-4239.70515949,0.00019738,2]
[329144416,1718135465061,-1190.27892066,0.00019767,2]
[329144417,1718135465072,-156.35283824,0.00019799,3]
[329144418,1718135465082,-152.424856,0.00019999,2]
[329144419,1718135465092,-832.61,0.00019999,2]
[329144420,1718135465103,-832.61,0.00019999,2]
[329144421,1718135465113,-832.61,0.00019999,2]
[329144422,1718135465123,-832.61,0.00019999,2]
[329144423,1718135465133,-832.61,0.00019999,2]
[329144424,1718135465144,-832.61,0.00019999,2]
[329144425,1718135465154,-832.82260421,0.00019999,2]
[329144426,1718135465165,-8998.07151426,0.0002,13]
[329144427,1718135465177,-34406.22666056,0.0002,2]
[329144428,1718135465187,-932.870483,0.0002,2]
[329144429,1718135465198,-157.67879839,0.0002,2]
[329144430,1718135465208,-13483.94434315,0.0002,2]
[329144431,1718135465218,-9502.43188347,0.0002,2]
[329144432,1718135465227,-435.0,0.0002,2]
[329144433,1718135465237,-529.07913635,0.0002,4]
[329144434,1718135465247,-500.0,0.0002,2]
[329144435,1718135465258,-500.0,0.0002,2]
[329144436,1718135465270,-500.0,0.0002,2]
[329144437,1718135465284,-500.0,0.0002,2]
[329144438,1718135465297,-541.75930841,0.0002,2]
[329144439,1718135465307,-500.0,0.0002,2]
[329144440,1718135465317,-500.0,0.0002,2]
[329144441,1718135465333,-500.0,0.0002,2]
[329144442,1718135465345,-500.0,0.0002,2]
[329144443,1718135465359,-500.0,0.0002,2]
[329144444,1718135465369,-500.0,0.0002,2]
[329144445,1718135465379,-500.0,0.0002,2]
[329144446,1718135465389,-500.0,0.0002,2]
[329144447,1718135465400,-500.0,0.0002,2]
[329144448,1718135465410,-500.0,0.0002,2]
[329144449,1718135465420,-364.20641032,0.0002,2]
[329144450,1718135465430,-500.0,0.0002,2]
[329144451,1718135465440,-500.0,0.0002,2]
[329144452,1718135465450,-493.4799678,0.0002,2]
[329144453,1718135465461,-500.0,0.0002,2]
[329144454,1718135465471,-500.0,0.0002,2]
[329144455,1718135465481,-500.0,0.0002,2]
[329144456,1718135465491,-500.0,0.0002,2]
[329144457,1718135465501,-500.0,0.0002,2]
[329144458,1718135465512,-500.0,0.0002,2]
[329144459,1718135465522,-228294.18292534,0.0002,2]
[329144460,1718135466264,-500.0,0.00019178,2]
[329144461,1718135466279,-500.0,0.00019178,2]
[329144462,1718135466292,-551.08,0.00019452,2]
[329144463,1718135466302,-500.0,0.00019452,2]
[329144464,1718135466313,-840.957654,0.00019452,2]
[329144465,1718135466325,-504.462346,0.00019452,2]
[329144466,1718135466347,-336.495308,0.00019452,2]
[329144467,1718135466360,-500.0,0.00019726,2]
[329144468,1718135466372,-18914.38511921,0.0002,2]
[329144469,1718135466397,-840.957654,0.00019725,2]
[329144470,1718135466407,-6154.042346,0.0002,2]
[329144471,1718135506179,155.01085076,9.999e-05,2]
[329144473,1718135528922,155.01085076,9.999e-05,2]
[329144474,1718135537408,157.76043929,9.999e-05,2]
[329144475,1718136123207,155.01085076,9.999e-05,2]
[329144476,1718136158001,155.01085076,9.999e-05,2]
[329144478,1718136494902,23433.36447698,9.999e-05,2]
[329144537,1718136634333,-2081.6,0.00017817,2]
[329144538,1718136634398,-561.7061463,0.00017817,2]
[329144539,1718136634409,-12983.0411533,0.00017818,2]
[329144540,1718136634419,-469.8742058,0.00017953,2]
[329144541,1718136634430,-470.90725939,0.000189,2]
[329144542,1718136634440,-1112.22877,0.00019,2]
[329144543,1718136634450,-7269.5959632,0.00019,2]
[329144544,1718136634460,-2000.0,0.00019078,2]
[329144545,1718136634471,-1302.68548416,0.00019157,2]
[329144546,1718136634481,-3374.81341595,0.00019176,2]
[329144547,1718136634493,-2875.96569708,0.00019176,2]
[329144548,1718136634504,-236.95891892,0.00019176,2]
[329144549,1718136634514,-156.75739686,0.00019176,2]
[329144550,1718136634524,-380.14396837,0.00019176,2]
[329144551,1718136634534,-4413.01936139,0.00019176,2]
[329144552,1718136634544,-317.21490521,0.00019176,2]
[329144553,1718136634661,-1099.34634178,0.00019176,2]
[329144554,1718136634673,-1954.74414678,0.00019176,2]
[329144555,1718136634684,-7918.32867576,0.00019176,2]
[329144556,1718136634696,-157.62547626,0.00019176,2]
[329144557,1718136634707,-3000.0,0.00019177,2]
[329144558,1718136634717,-3000.0,0.00019177,2]
[329144559,1718136634729,-1822.75842459,0.00019178,15]
[329144560,1718136634767,-794.36569708,0.00019178,15]
[329144561,1718136634796,-638.5628782,0.00019178,15]
[329144683,1718136646659,-869.9655276,0.00018315,2]
[329144684,1718136646670,-286.53135198,0.00019177,2]
[329144685,1718136646680,-12147.1276771,0.00019178,15]
[329144686,1718136646695,-31897.35580492,0.00019178,15]
[329144687,1718136646707,-1407.91292706,0.00019178,2]
[329144688,1718136646717,-3431.79632321,0.00019178,2]
[329144689,1718136646727,-1407.91292706,0.00019178,2]
[329144690,1718136646737,-3431.79632321,0.00019178,2]
[329144691,1718136646748,-3431.79632321,0.00019178,2]
[329144692,1718136646759,-3431.79632321,0.00019178,2]
[329144693,1718136646770,-1407.91292706,0.00019178,2]
[329144694,1718136646781,-3431.79632321,0.00019178,2]
[329144695,1718136646791,-1407.91292706,0.00019178,2]
[329144697,1718136646809,-1407.91292706,0.00019178,2]
[329144699,1718136646827,-1407.91292706,0.00019178,2]
[329144701,1718136646838,-3431.79632321,0.00019178,2]
[329144703,1718136646848,-1407.91292706,0.00019178,2]
[329144705,1718136646858,-1407.91292706,0.00019178,2]
[329144707,1718136646868,-3431.79632321,0.00019178,2]
[329144709,1718136646878,-3431.79632321,0.00019178,2]
[329144711,1718136646888,-3431.79632321,0.00019178,2]
[329144713,1718136646898,-1407.91292706,0.00019178,2]
[329144715,1718136646908,-3431.79632321,0.00019178,2]
[329144717,1718136646918,-1407.91292706,0.00019178,2]
[329144719,1718136646929,-3431.79632321,0.00019178,2]
[329144721,1718136646939,-3431.79632321,0.00019178,2]
[329144723,1718136646949,-1407.91292706,0.00019178,2]
[329144725,1718136646958,-1407.91292706,0.00019178,2]
[329144727,1718136646968,-1407.91292706,0.00019178,2]
[329144729,1718136646977,-3431.79632321,0.00019178,2]
[329144731,1718136646986,-3431.79632321,0.00019178,2]
[329144733,1718136646996,-1407.91292706,0.00019178,2]
[329144735,1718136647006,-3431.79632321,0.00019178,2]
[329144737,1718136647016,-3431.79632321,0.00019178,2]
[329144739,1718136647028,-3431.79632321,0.00019178,2]
[329144741,1718136647073,-1407.91292706,0.00019178,2]
[329144743,1718136647093,-3431.79632321,0.00019178,2]
[329144746,1718136647111,-1407.91292706,0.00019178,2]